bitfinex/quotes_SOLUSD_20251202
["timestamp","ask_amount","ask_price","bid_price","bid_amount"]
[1764650633873,9.34,127.47,127.44,0.71]
[1764650634051,0.68,127.46,127.44,0.71]
[1764650634781,0.68,127.46,127.44,7.84682988]
[1764650642887,0.68,127.46,127.44,8.44682988]
[1764650654385,0.68,127.46,127.39,0.68]
[1764650654386,16.308864,127.45,127.39,0.68]
[1764650654586,3.99551265,127.43,127.39,0.68]
[1764650654789,4.67551265,127.44,127.39,4.67551265]
[1764650655194,0.68,127.43,127.39,12.5253779]
[1764650655578,0.68,127.43,127.39,11.8453779]
[1764650655896,18.24994492,127.43,127.4,0.68]
[1764650656094,0.68,127.43,127.4,0.68]
[1764650656903,0.68,127.43,127.4,12.52454225]
[1764650658180,0.68,127.44,127.41,4.67551265]
[1764650658404,32.8152742,127.45,127.41,3.99551265]
[1764650658610,0.68,127.43,127.41,3.99551265]
[1764650659397,0.68,127.43,127.4,8.5290296]
[1764650659600,0.68,127.43,127.4,12.52454225]
[1764650661107,0.68,127.43,127.4,7.8490296]
[1764650662389,0.68,127.43,127.4,11.84454225]
[1764650662707,0.68,127.43,127.4,12.52454225]
[1764650663603,0.68,127.43,127.4,13.12454225]
[1764650664102,0.68,127.43,127.4,9.1290296]
[1764650664301,0.68,127.43,127.4,13.12454225]
[1764650665998,0.68,127.48,127.42,12.80545757]
[1764650666300,0.68,127.47,127.44,3.99551265]
[1764650668090,0.68,127.47,127.44,11.84196799]
[1764650669210,0.68,127.47,127.45,3.99551265]
[1764650670608,0.68,127.47,127.45,11.84144202]
[1764650670811,16.308864,127.48,127.45,11.84144202]
[1764650671000,17.028864,127.48,127.47,3.99551265]
[1764650671202,17.028864,127.48,127.46,3.99551265]
[1764650671506,8.66,127.5,127.46,3.99551265]
[1764650671706,0.72,127.48,127.46,4.59551265]
[1764650673610,0.72,127.48,127.46,12.441015]
[1764650674501,0.72,127.48,127.46,11.00147473]
[1764650675612,0.72,127.48,127.47,2.55597238]
[1764650675819,0.72,127.49,127.47,2.55597238]
[1764650676814,0.72,127.51,127.48,2.55597238]
[1764650677126,0.72,127.5,127.46,2.55597238]
[1764650677329,24.968864,127.49,127.46,2.55597238]
[1764650677510,9.38,127.5,127.47,2.55597238]
[1764650677696,0.72,127.49,127.47,2.55597238]
[1764650680011,0.72,127.49,127.46,11.12134219]
[1764650680309,0.72,127.49,127.46,10.40134219]
[1764650680511,8.56382824,127.49,127.46,7.84536981]
[1764650680807,11.11980062,127.49,127.44,10.40234448]
[1764650681013,0.72,127.48,127.44,10.40234448]
[1764650681223,0.72,127.48,127.44,29.98718086]
[1764650681835,0.72,127.48,127.44,27.43120848]
[1764650681999,0.72,127.48,127.44,29.98718086]
[1764650682199,0.72,127.48,127.44,11.12234448]
[1764650682411,0.72,127.48,127.45,2.55597238]
[1764650683520,0.72,127.48,127.46,2.55597238]
[1764650683721,19.60799988,127.5,127.44,7.8463721]
[1764650683722,9.35,127.5,127.47,2.55597238]
[1764650683901,9.35,127.5,127.47,10.40057198]
[1764650684101,0.69,127.49,127.47,10.40057198]
[1764650685033,9.35,127.5,127.47,11.06057198]
[1764650685832,0.69,127.5,127.47,11.06057198]
[1764650686742,0.69,127.52,127.49,2.55597238]
[1764650686902,0.69,127.51,127.49,2.55597238]
[1764650687799,16.308864,127.53,127.5,2.55597238]
[1764650687999,16.308864,127.53,127.49,7.84363862]
[1764650688000,9.35,127.53,127.51,2.55597238]
[1764650688409,9.35,127.53,127.5,2.55597238]
[1764650688808,25.658864,127.53,127.5,2.55597238]
[1764650689526,24.968864,127.53,127.5,2.55597238]
[1764650689826,25.658864,127.53,127.5,2.55597238]
[1764650690037,25.658864,127.53,127.5,10.3990548]
[1764650690929,24.968864,127.53,127.5,10.3990548]
[1764650691127,0.69,127.53,127.51,2.55597238]
[1764650691309,0.69,127.53,127.5,11.0590548]
[1764650693929,0.69,127.53,127.51,2.55597238]
[1764650694125,17.198864,127.55,127.52,2.55597238]
[1764650694319,17.198864,127.55,127.52,3.21597238]
[1764650694504,0.2,127.55,127.53,9.46994492]
[1764650694706,0.2,127.55,127.54,12.0259173]
[1764650695938,0.89,127.55,127.53,8.44122713]
[1764650696110,0.89,127.55,127.53,19.80714443]
[1764650698002,0.89,127.55,127.54,2.55597238]
[1764650698429,0.2,127.55,127.54,2.55597238]
[1764650698609,0.2,127.55,127.54,12.0259173]
[1764650699434,0.2,127.55,127.54,19.20659473]
[1764650700236,0.2,127.55,127.54,7.84067743]
[1764650700535,0.89,127.55,127.54,7.84067743]
[1764650700721,0.2,127.55,127.54,7.84067743]
[1764650701434,0.89,127.55,127.54,7.84067743]
[1764650701636,0.89,127.55,127.53,7.84108707]
[1764650701821,0.69,127.54,127.53,7.84108707]
[1764650702942,0.69,127.54,127.52,8.44171951]
[1764650703118,0.69,127.54,127.52,10.99769189]
[1764650703318,0.69,127.54,127.52,10.39769189]
[1764650705137,0.2,127.55,127.53,2.55597238]
[1764650705318,0.2,127.55,127.53,3.21597238]
[1764650705519,0.89,127.55,127.52,8.50171951]
[1764650705735,0.89,127.55,127.53,2.55597238]
[1764650706242,36.03551381,127.54,127.45,0.66]
[1764650706538,2.55597238,127.51,127.46,2.55597238]
[1764650706720,2.55597238,127.52,127.47,2.55597238]
[1764650706920,3.24597238,127.52,127.46,11.3659173]
[1764650707126,8.53252215,127.51,127.47,7.84498313]
[1764650707840,0.69,127.5,127.47,7.84498313]
[1764650708342,0.69,127.5,127.47,10.40095551]
[1764650708528,0.69,127.5,127.47,11.06095551]
[1764650708723,0.69,127.52,127.48,12.0259173]
[1764650708920,0.69,127.51,127.47,19.06095551]
[1764650709234,0.69,127.51,127.47,27.45744096]
[1764650709740,0.69,127.51,127.47,30.01341334]
[1764650710318,0.69,127.51,127.48,8.80994492]
[1764650710616,0.69,127.51,127.48,12.0259173]
[1764650711115,0.69,127.51,127.49,7.84375245]
[1764650711338,0.69,127.51,127.49,8.44375245]
[1764650711537,35.36574595,127.54,127.49,8.44375245]
[1764650711747,0.7,127.52,127.49,8.44375245]
[1764650712549,24.14977357,127.54,127.49,10.99972483]
[1764650712838,0.7,127.53,127.49,31.27910595]
[1764650716343,8.54135839,127.53,127.49,11.66972483]
[1764650717042,0.7,127.52,127.49,11.66972483]
[1764650720829,0.7,127.52,127.49,9.11375245]
[1764650721036,0.7,127.52,127.49,11.66972483]
[1764650721942,17.20068839,127.54,127.5,12.0359173]
[1764650722238,8.54068839,127.54,127.5,12.0359173]
[1764650722641,0.2,127.55,127.52,11.3659173]
[1764650722846,0.2,127.55,127.53,0.67]
[1764650723044,0.9,127.55,127.52,3.22597238]
[1764650723228,0.9,127.55,127.52,12.0359173]
[1764650724051,0.9,127.55,127.53,7.84129224]
[1764650724923,0.2,127.55,127.53,7.84129224]
[1764650725248,0.2,127.55,127.53,10.39726462]
[1764650727852,0.2,127.55,127.53,11.06726462]
[1764650728351,0.2,127.55,127.53,10.39726462]
[1764650729557,0.9,127.55,127.53,10.39726462]
[1764650730319,0.2,127.55,127.53,7.84129224]
[1764650731430,0.2,127.55,127.53,10.39726462]
[1764650731757,0.2,127.55,127.53,7.84129224]
[1764650731931,0.91,127.55,127.53,10.99726462]
[1764650733154,0.91,127.55,127.53,8.44129224]
[1764650734360,0.71,127.54,127.53,0.6]
[1764650737852,0.71,127.54,127.51,7.84251094]
[1764650739837,0.71,127.54,127.5,4.59091447]
[1764650740157,8.55092736,127.54,127.5,12.43382548]
[1764650740545,0.71,127.53,127.5,12.43382548]
[1764650742948,0.71,127.53,127.5,13.11382548]
[1764650743261,0.71,127.53,127.5,12.43382548]
[1764650743661,0.71,127.53,127.5,8.44291101]
[1764650746858,0.71,127.53,127.5,12.43382548]
[1764650747161,0.71,127.53,127.5,13.11382548]
[1764650747346,0.71,127.53,127.5,12.43382548]
[1764650748160,0.71,127.53,127.5,8.44291101]
[1764650749671,0.71,127.53,127.48,7.84404965]
[1764650749672,3.99091447,127.52,127.48,7.84404965]
[1764650750176,0.69,127.51,127.48,7.84404965]
[1764650751340,0.69,127.51,127.48,11.83496412]
[1764650755648,0.69,127.51,127.48,12.43496412]
[1764650757279,3.99091447,127.54,127.49,12.80085939]
[1764650757449,0.69,127.54,127.51,3.99091447]
[1764650757652,25.03920005,127.55,127.52,3.99091447]
[1764650757864,0.69,127.54,127.51,4.59091447]
[1764650758073,0.69,127.54,127.51,0.6]
[1764650758844,4.68091447,127.54,127.51,0.6]
[1764650759387,16.508864,127.55,127.51,1.28]
[1764650759545,17.198864,127.55,127.53,3.99091447]
[1764650759745,16.508864,127.55,127.53,3.99091447]
[1764650759965,0.2,127.55,127.53,3.99091447]
[1764650760169,0.2,127.55,127.54,4.67091447]
[1764650760371,0.2,127.55,127.54,22.12085939]
[1764650761065,0.2,127.57,127.56,25.11880892]
[1764650761271,0.2,127.57,127.56,33.10063786]
[1764650761477,0.2,127.57,127.56,41.48008596]
[1764650763749,0.2,127.57,127.56,50.12008596]
[1764650764055,0.2,127.58,127.57,8.80994492]
[1764650764261,0.2,127.59,127.58,3.99091447]
[1764650764470,0.2,127.59,127.58,13.17091447]
[1764650765272,0.2,127.59,127.58,21.00913362]
[1764650766271,0.2,127.59,127.58,30.41907854]
[1764650772389,0.2,127.59,127.58,29.87907854]
[1764650772591,0.89,127.59,127.58,7.83821915]
[1764650772891,0.89,127.59,127.57,11.82957518]
[1764650773066,0.69,127.58,127.57,11.82957518]
[1764650774194,0.69,127.58,127.57,7.83866071]
[1764650774688,0.69,127.58,127.56,7.83928204]
[1764650775876,0.69,127.58,127.55,7.83982132]
[1764650776163,12.51917427,127.58,127.53,11.83210759]
[1764650776684,0.69,127.57,127.53,11.83210759]
[1764650777686,3.99091447,127.56,127.51,8.80994492]
[1764650778080,0.69,127.55,127.51,12.80085939]
[1764650778279,0.69,127.55,127.5,8.64]
[1764650778280,3.99091447,127.54,127.5,8.80994492]
[1764650778780,0.69,127.53,127.5,8.80994492]
[1764650780593,4.68091447,127.51,127.48,7.84395547]
[1764650780890,0.69,127.5,127.47,16.65492805]
[1764650785397,0.69,127.5,127.47,17.25492805]
[1764650787100,0.69,127.5,127.47,21.24584252]
[1764650787702,0.69,127.5,127.47,17.25492805]
[1764650789093,0.69,127.5,127.47,21.24584252]
[1764650789297,0.69,127.5,127.47,17.25492805]
[1764650790100,7.84216938,127.52,127.47,21.78584252]
[1764650790288,0.69,127.53,127.51,3.99091447]
[1764650790490,3.99091447,127.56,127.51,12.80085939]
[1764650790692,20.29977847,127.56,127.51,12.80085939]
[1764650790879,0.67,127.55,127.51,12.80085939]
[1764650791284,0.67,127.55,127.51,20.64312471]
[1764650791474,8.51026072,127.55,127.51,16.65221024]
[1764650791674,8.51022294,127.55,127.52,3.99091447]
[1764650791902,0.67,127.54,127.51,20.64312471]
[1764650794105,0.67,127.54,127.51,16.65221024]
[1764650796704,11.06495655,127.54,127.48,28.12299364]
[1764650797012,2.55412964,127.53,127.48,17.10414891]
[1764650797195,3.22412964,127.53,127.48,17.10414891]
[1764650797507,0.67,127.52,127.48,17.10414891]
[1764650798006,11.06644696,127.52,127.48,17.10414891]
[1764650798407,0.67,127.51,127.48,17.10414891]
[1764650801597,0.67,127.51,127.48,16.50414891]
[1764650801794,7.8411257,127.54,127.5,2.55412964]
[1764650801994,0.66,127.53,127.5,2.55412964]
[1764650802306,0.66,127.53,127.49,11.96407456]
[1764650802614,0.66,127.53,127.49,12.50407456]
[1764650802906,0.66,127.53,127.5,7.84313725]
[1764650805899,8.50165609,127.53,127.49,10.99775556]
[1764650806109,8.50165609,127.53,127.49,7.84362592]
[1764650806321,0.66,127.52,127.49,7.84362592]
[1764650808692,27.44156353,127.55,127.51,2.55412964]
[1764650809027,0.66,127.57,127.54,10.39464249]
[1764650809193,0.66,127.57,127.56,2.55412964]
[1764650809394,8.6978479,127.59,127.56,2.55412964]
[1764650809593,0.66,127.58,127.56,2.55412964]
[1764650812220,0.66,127.58,127.55,7.83983016]
[1764650812392,0.66,127.58,127.56,2.55412964]
[1764650812592,0.66,127.58,127.55,10.3939598]
[1764650815105,0.66,127.58,127.55,10.9939598]
[1764650816520,8.49823137,127.58,127.55,10.9939598]
[1764650816742,0.66,127.58,127.55,10.9939598]
[1764650818206,0.66,127.58,127.56,2.55412964]
[1764650819206,0.66,127.58,127.55,8.43983016]
[1764650819408,0.66,127.58,127.56,10.39337211]
[1764650819609,0.66,127.58,127.55,8.43980646]
[1764650819816,0.66,127.58,127.55,10.9939361]
[1764650820120,16.308864,127.53,127.46,0.68]
[1764650820327,2.55412964,127.51,127.46,11.07958301]
[1764650820530,2.55412964,127.51,127.46,8.52545337]
[1764650820731,0.57,127.51,127.47,0.68]
[1764650821529,7.84313725,127.5,127.47,0.68]
[1764650821704,0.57,127.51,127.47,11.07870843]
[1764650821903,19.03659115,127.52,127.47,11.07870843]
[1764650821904,16.48246151,127.52,127.47,11.07870843]
[1764650822222,2.55412964,127.5,127.47,8.52457879]
[1764650822730,3.12412964,127.5,127.47,7.84457879]
[1764650823025,2.55412964,127.49,127.47,7.84457879]
[1764650823830,2.55412964,127.49,127.45,28.42451864]
[1764650823831,2.55412964,127.48,127.45,7.84590741]
[1764650824035,2.55412964,127.46,127.45,7.84590741]
[1764650825118,2.55412964,127.46,127.44,8.52662869]
[1764650825320,2.55412964,127.45,127.44,8.52662869]
[1764650825521,2.55412964,127.45,127.44,0.68]
[1764650826930,2.55412964,127.46,127.44,0.68]
[1764650827635,2.55412964,127.47,127.44,8.52653583]
[1764650827828,18.86299364,127.5,127.45,8.80994492]
[1764650828140,2.55412964,127.5,127.45,18.18994492]
[1764650828309,2.55412964,127.5,127.46,0.68]
[1764650829127,7.84289568,127.51,127.47,10.39911277]
[1764650829333,8.41289568,127.51,127.47,10.39911277]
[1764650829508,8.41289568,127.51,127.47,11.07911277]
[1764650829708,10.39702532,127.51,127.47,8.52498313]
[1764650829915,3.12412964,127.5,127.47,7.84498313]
[1764650830116,3.12412964,127.5,127.46,11.07949485]
[1764650830314,0.57,127.5,127.46,11.07949485]
[1764650830931,10.96702532,127.51,127.47,0.68]
[1764650831108,10.39702532,127.51,127.47,0.68]
[1764650831316,0.57,127.5,127.46,2.55412964]
[1764650832233,3.12412964,127.5,127.45,11.07008621]
[1764650832607,0.57,127.49,127.45,11.07008621]
[1764650833636,8.41376693,127.49,127.45,11.07008621]
[1764650834249,0.57,127.49,127.46,0.67]
[1764650834926,0.57,127.49,127.45,11.07008621]
[1764650835441,10.39749291,127.5,127.45,10.40008621]
[1764650835622,8.7,127.5,127.46,3.22412964]
[1764650835822,9.27,127.5,127.46,3.22412964]
[1764650836021,8.4127182,127.51,127.47,3.22412964]
[1764650836239,24.1515822,127.51,127.47,3.22412964]
[1764650836441,24.1515822,127.51,127.48,0.67]
[1764650836654,3.12412964,127.54,127.49,2.55412964]
[1764650836949,16.308864,127.53,127.49,2.55412964]
[1764650837157,16.878864,127.53,127.49,3.22412964]
[1764650837362,19.43299364,127.53,127.49,0.67]
[1764650838142,27.27471013,127.53,127.49,0.67]
[1764650840225,24.72058049,127.53,127.49,8.51371828]
[1764650840421,27.27471013,127.53,127.49,8.51371828]
[1764650841542,27.27471013,127.53,127.49,11.06784792]
[1764650841741,24.15058049,127.53,127.5,0.67]
[1764650842051,19.6001568,127.55,127.51,2.55412964]
[1764650842052,27.4407198,127.55,127.51,2.55412964]
[1764650842226,0.57,127.54,127.5,3.22412964]
[1764650843357,10.9653833,127.54,127.48,20.27951668]
[1764650843660,10.9653833,127.54,127.49,2.55412964]
[1764650844025,0.57,127.53,127.49,3.22412964]
[1764650845447,8.41172012,127.53,127.49,11.06783243]
[1764650845655,8.41172012,127.53,127.5,2.55412964]
[1764650845656,7.84172012,127.53,127.5,2.55412964]
[1764650845841,7.84172012,127.53,127.5,3.22412964]
[1764650846147,8.41092569,127.54,127.51,0.67]
[1764650846346,8.7,127.53,127.5,3.22412964]
[1764650847242,8.7,127.53,127.5,11.06706765]
[1764650847440,17.11092569,127.54,127.5,11.06706765]
[1764650849851,16.308864,127.55,127.53,2.55412964]
[1764650850238,16.308864,127.55,127.53,3.22412964]
[1764650850561,16.308864,127.55,127.52,2.55412964]
[1764650850736,16.308864,127.55,127.51,3.22412964]
[1764650851138,16.308864,127.55,127.52,0.71]
[1764650852055,24.71905934,127.55,127.51,3.26412964]
[1764650852258,0.57,127.54,127.51,3.26412964]
[1764650852457,11.82412964,127.54,127.49,11.10759402]
[1764650852662,8.7,127.54,127.51,3.26412964]
[1764650854165,16.54073872,127.54,127.51,3.26412964]
[1764650854366,16.54073872,127.54,127.52,0.71]
[1764650854367,8.7,127.54,127.52,0.71]
[1764650854543,8.7,127.54,127.51,3.26412964]
[1764650855049,9.27,127.54,127.5,2.55412964]
[1764650855252,9.27,127.54,127.5,3.26412964]
[1764650856467,9.27,127.54,127.5,11.10701882]
[1764650856468,17.1107603,127.54,127.5,11.10701882]
[1764650857459,17.1107603,127.54,127.5,10.39701882]
[1764650857658,17.1107603,127.54,127.51,0.71]
[1764650859273,8.7,127.54,127.51,12.54397603]
[1764650861372,17.11084343,127.54,127.51,12.54397603]
[1764650861580,17.11084343,127.54,127.51,8.55243092]
[1764650861878,17.11084343,127.54,127.51,7.84243092]
[1764650862460,17.11084343,127.54,127.51,8.52243092]
[1764650863260,17.11084343,127.54,127.51,7.84243092]
[1764650863569,17.11084343,127.54,127.51,8.52243092]
[1764650863866,17.11084343,127.54,127.51,7.84243092]
[1764650864575,0.57,127.53,127.5,7.84297813]
[1764650865642,8.41130467,127.53,127.5,7.84297813]
[1764650866069,7.84130467,127.53,127.5,8.52297813]
[1764650866255,7.84130467,127.53,127.5,11.83452324]
[1764650866455,7.84130467,127.53,127.51,0.68]
[1764650866671,7.84130467,127.53,127.5,12.51452324]
[1764650866963,7.84130467,127.53,127.5,8.52297813]
[1764650867170,8.41130467,127.53,127.5,7.84297813]
[1764650868459,8.41130467,127.53,127.5,8.52297813]
[1764650870171,8.41130467,127.53,127.5,0.68]
[1764650870473,8.41130467,127.53,127.49,11.83501618]
[1764650870474,0.57,127.52,127.49,0.68]
[1764650871150,11.83284978,127.53,127.49,4.67154511]
[1764650871375,8.41130467,127.53,127.49,4.67154511]
[1764650871568,8.41130467,127.53,127.5,0.68]
[1764650872876,8.41130467,127.53,127.5,8.52312882]
[1764650873572,8.7,127.54,127.51,0.68]
[1764650874258,8.7,127.54,127.51,4.67154511]
[1764650874462,8.7,127.54,127.51,0.68]
[1764650874760,16.54078645,127.54,127.51,0.68]
[1764650874967,17.11078645,127.54,127.51,0.68]
[1764650879078,0.57,127.53,127.49,8.52360462]
[1764650879283,0.57,127.53,127.49,12.51514973]
[1764650879465,0.57,127.53,127.49,11.83514973]
[1764650879667,20.53233156,127.54,127.5,0.68]
[1764650879863,21.10233156,127.54,127.5,0.68]
[1764650880263,40.70402514,127.54,127.5,0.68]
[1764650880666,4.56154511,127.53,127.49,0.68]
[1764650880883,8.68,127.52,127.49,0.68]
[1764650881387,12.67154511,127.52,127.49,0.68]
[1764650881569,3.99154511,127.5,127.46,0.68]
[1764650881777,3.99154511,127.5,127.42,0.1]
[1764650881778,3.99154511,127.48,127.45,0.68]
[1764650882473,8.68,127.47,127.45,0.68]
[1764650884186,12.67154511,127.47,127.43,0.1]
[1764650884486,12.67154511,127.47,127.44,0.68]
[1764650884786,7.84559861,127.46,127.44,0.68]
[1764650886283,7.84559861,127.46,127.43,0.1]
[1764650886484,12.40714372,127.46,127.43,0.78]
[1764650887367,11.83714372,127.46,127.43,0.78]
[1764650888793,31.45114026,127.46,127.43,0.78]
[1764650888988,12.67154511,127.45,127.43,0.78]
[1764650890066,20.51834267,127.45,127.43,0.78]
[1764650891773,20.51834267,127.45,127.43,0.1]
[1764650891973,3.99154511,127.44,127.43,0.1]
[1764650892173,4.56154511,127.44,127.43,0.1]
[1764650892731,20.51834267,127.45,127.43,0.82]
[1764650892870,16.52679756,127.45,127.43,0.82]
[1764650893173,3.99154511,127.44,127.43,0.1]
[1764650894892,12.40837499,127.44,127.43,0.1]
[1764650895071,16.3999201,127.44,127.43,0.1]
[1764650896273,12.40837499,127.44,127.43,0.1]
[1764650905386,28.71723899,127.44,127.43,0.1]
[1764650906307,37.39723899,127.44,127.43,0.1]
[1764650907506,25.0799201,127.44,127.43,0.1]
[1764650907689,16.3999201,127.44,127.43,0.1]
[1764650907889,25.11880892,127.43,127.42,0.1]
[1764650908089,29.68035403,127.43,127.42,1e-08]
[1764650909096,37.52779968,127.43,127.42,1e-08]
[1764650910885,21.21893568,127.43,127.42,1e-08]
[1764650913088,12.40899076,127.43,127.42,1e-08]
[1764650913997,21.21893568,127.43,127.42,1e-08]
[1764650914210,43.22258018,127.43,127.42,1e-08]
[1764650916406,31.64198355,127.43,127.42,1e-08]
[1764650920533,30.21107329,127.43,127.42,1e-08]
[1764650922424,33.35783016,127.43,127.42,1e-08]
[1764650923319,24.10783016,127.43,127.42,0.68000001]
[1764650923525,32.78783016,127.43,127.42,0.68000001]
[1764650923711,32.78783016,127.43,127.42,1e-08]
[1764650928134,24.10783016,127.43,127.42,1e-08]
[1764650928432,32.78783016,127.43,127.42,1e-08]
[1764650928632,24.10783016,127.43,127.42,1e-08]
[1764650929229,32.78783016,127.43,127.42,1e-08]
[1764650929525,24.10783016,127.43,127.42,1e-08]
[1764650929709,32.78783016,127.43,127.42,1e-08]
[1764650930110,32.78783016,127.43,127.42,0.68000001]
[1764650930331,32.78783016,127.43,127.42,1e-08]
[1764650931916,32.78783016,127.43,127.42,0.68000001]
[1764650932626,32.78783016,127.43,127.42,1e-08]
[1764650936438,32.78783016,127.43,127.42,0.68000001]
[1764650937918,16.308864,127.41,127.4,0.1]
[1764650938120,27.52949885,127.41,127.4,0.1]
[1764650939739,35.48157476,127.41,127.4,0.1]
[1764650939924,43.33025225,127.41,127.4,0.78]
[1764650940441,35.37817634,127.41,127.4,0.78]
[1764650940641,24.15754149,127.41,127.4,0.78]
[1764650940837,35.37817634,127.41,127.4,0.78]
[1764650941017,35.37817634,127.41,127.4,0.1]
[1764650941213,36.09817634,127.41,127.4,0.1]
[1764650941838,39.24518078,127.41,127.4,0.1]
[1764650942344,58.60811849,127.41,127.4,1e-08]
[1764650943544,10.99568193,127.41,127.4,0.68000001]
[1764650943742,10.40931234,127.41,127.4,0.68000001]
[1764650944045,26.71817634,127.41,127.4,1e-08]
[1764650944248,26.71817634,127.41,127.4,0.68000001]
[1764650945242,7.84867749,127.41,127.4,1e-08]
[1764650945544,32.83754149,127.41,127.4,0.68000001]
[1764650946244,35.39817634,127.41,127.4,1e-08]
[1764650946419,35.39817634,127.41,127.4,0.68000001]
[1764650947550,32.83754149,127.41,127.4,0.68000001]
[1764650949628,35.39817634,127.41,127.4,0.68000001]
[1764650952133,35.39817634,127.41,127.4,0.65000001]
[1764650952536,43.2492943,127.41,127.4,0.65000001]
[1764650955549,43.2492943,127.41,127.4,1e-08]
[1764650955852,43.9492943,127.41,127.4,1e-08]
[1764650956353,43.2492943,127.41,127.4,1e-08]
[1764650961459,43.2492943,127.41,127.4,0.65000001]
[1764650963059,34.5692943,127.41,127.4,0.65000001]
[1764650963244,43.2492943,127.41,127.4,0.65000001]
[1764650963560,40.68865945,127.41,127.4,0.65000001]
[1764650963757,32.00865945,127.41,127.4,0.65000001]
[1764650963954,40.68865945,127.41,127.4,0.65000001]
[1764650965261,43.2492943,127.41,127.4,0.65000001]
[1764650971470,26.9404303,127.41,127.4,0.65000001]
[1764650972541,15.69979545,127.41,127.4,0.65000001]
[1764650972768,16.50867749,127.41,127.4,0.65000001]
[1764650973646,16.50867749,127.41,127.4,1e-08]
[1764650973647,19.77931234,127.41,127.4,1e-08]
[1764650974177,22.92631678,127.41,127.4,1e-08]
[1764650974463,20.36568193,127.41,127.4,1e-08]
[1764650974647,22.92631678,127.41,127.4,1e-08]
[1764650975165,22.21631678,127.41,127.4,1e-08]
[1764650975541,22.92631678,127.41,127.4,1e-08]
[1764650975953,22.21631678,127.41,127.4,1e-08]
[1764650978448,19.65568193,127.41,127.4,1e-08]
[1764650978657,19.65568193,127.41,127.4,0.71000001]
[1764650978658,22.21631678,127.41,127.4,0.71000001]
[1764650980365,23.6559775,127.41,127.4,0.71000001]
[1764650986169,19.65568193,127.41,127.4,0.71000001]
[1764650986374,23.6559775,127.41,127.4,0.71000001]
[1764650990968,11.80700444,127.41,127.4,0.71000001]
[1764650992557,19.65568193,127.41,127.4,0.71000001]
[1764650996479,23.6559775,127.41,127.4,0.71000001]
[1764650997371,23.6559775,127.41,127.4,1e-08]
[1764650997764,23.6559775,127.41,127.4,0.66000001]
[1764651000384,23.6559775,127.41,127.4,1e-08]
[1764651000776,23.6559775,127.41,127.4,0.66000001]
[1764651001498,40.6648415,127.41,127.4,1e-08]
[1764651003489,35.96454593,127.41,127.4,0.66000001]
[1764651003784,39.9648415,127.41,127.4,0.66000001]
[1764651004083,31.3048415,127.41,127.4,1e-08]
[1764651004292,39.9648415,127.41,127.4,0.66000001]
[1764651007270,40.6648415,127.41,127.4,1e-08]
[1764651018007,36.66454593,127.41,127.4,1e-08]
[1764651018302,16.308864,127.41,127.4,0.72000001]
[1764651021108,16.50815021,127.42,127.4,4.72029558]
[1764651021304,8.66,127.42,127.4,4.72029558]
[1764651021488,8.66,127.42,127.41,0.72]
[1764651027893,24.15594599,127.44,127.41,0.72]
[1764651028109,4.00029557,127.47,127.42,4.00029557]
[1764651028309,8.66,127.46,127.43,4.00029557]
[1764651028810,8.66,127.46,127.44,0.72]
[1764651029107,8.66,127.46,127.44,4.72029557]
[1764651029314,8.66,127.47,127.44,4.72029557]
[1764651029617,23.58583277,127.51,127.46,4.00029557]
[1764651029788,31.42835492,127.51,127.47,4.00029557]
[1764651030113,51.73751449,127.51,127.48,0.72]
[1764651030297,28.15168172,127.51,127.48,0.72]
[1764651030495,11.84281772,127.51,127.48,0.72]
[1764651031091,20.50242441,127.52,127.48,0.72]
[1764651031502,4.00029557,127.51,127.48,0.72]
[1764651032414,11.84293962,127.51,127.48,0.72]
[1764651033411,36.81116949,127.52,127.48,0.72]
[1764651033792,37.48116949,127.52,127.48,0.72]
[1764651035910,4.00029557,127.51,127.48,0.72]
[1764651037392,11.84326415,127.51,127.48,0.72]
[1764651037591,7.84296858,127.51,127.48,0.72]
[1764651038100,11.84326415,127.51,127.48,0.72]
[1764651038300,12.51326415,127.51,127.48,0.72]